[Event "Saint Louis Norm Congress-IM 2022"]
[Site "Saint Louis"]
[Date "2022.05.22"]
[Round "6.1"]
[White "Posthuma, Joshua"]
[Black "Ezra Paul Chambers"]
[Result "1-0"]
[ECO "D30"]
[WhiteElo "2405"]
[BlackElo "2232"]
[Annotator "TA"]
[PlyCount "124"]
[EventDate "2022.05.20"]
[EventType "tourn"]
[EventCountry "USA"]
[SourceTitle "playchess.com"]
[Source "ChessBase"]
[SourceQuality "1"]
[TimeControl "5400+30"]

{[%evp 10,124,10,22,20,10,36,0,30,24,27,16,39,30,36,33,48,36,44,48,45,41,33,22,35,30,91,92,93,89,91,89,98,95,111,95,103,95,96,97,102,109,115,117,120,106,106,106,106,106,113,98,93,93,107,106,88,92,102,101,129,127,116,113,112,52,63,45,189,212,240,113,113,130,126,111,135,138,130,121,332,325,318,295,293,267,262,236,387,348,581,560,987,853,1139,1124,6522,10745,29968,29969,29975,29976,29975,29976,29977,29979,29978,29972,29972,29973,29967,29963,29976,29977,29974,29974,2379]} 1. Nf3 {[%emt 0:02:30]} d5 {[%emt 0:00:16]} 2. d4 {[%emt 0:00:53]} Nf6 {[%emt 0:00:18]} 3. c4 {[%emt 0:00:30]} c6 {[%emt 0:00:08]} 4. e3 {[%emt 0:00:22]} e6 {[%emt 0:00:26]} 5. Nbd2 {[%emt 0:00:40]} c5 {[%emt 0:01:14]} 6. cxd5 {[%emt 0:02:09]} exd5 {[%emt 0:00:08] D30: Queen's Gambit Declined: Systems without Nc3.} 7. Bb5+ {[%emt 0:02:27]} Nc6 {[%emt 0:00:51]} 8. Ne5 {[%emt 0:11:49]} Bd7 {[%emt 0:01:15] The position is equal.} 9. Nxd7 {[%emt 0:01:48]} Qxd7 {[%emt 0:00:15] [#]} 10. Nf3 $146 {[%emt 0:07:57]} ({Predecessor:} 10. dxc5 Bxc5 11. Nb3 Bd6 12. Nd4 O-O 13. O-O a6 14. Be2 Rfe8 15. Nxc6 bxc6 16. Bf3 {½-½ (42) Kovacs,Z (2298)-Szabolcsi,J (2386) Hungary 2003}) 10... Bd6 {[%emt 0:05:16]} 11. dxc5 {[%emt 0:02:19]} Bxc5 {[%emt 0:01:06]} 12. O-O {[%emt 0:05:12][%cal Ob2b4]} O-O {[%emt 0:00:27]} 13. b3 {[%emt 0:07:32]} Qd6 {[%emt 0:09:35]} 14. Bb2 {[%emt 0:02:11]} Ne4 {[%emt 0:03:15]} 15. Bxc6 {[%emt 0:06:19]} bxc6 {[%emt 0:02:43]} 16. Rc1 {[%emt 0:02:27]} Rac8 {[%emt 0:02:08]} 17. Nd4 {[%emt 0:07:53]} f5 {[%emt 0:06:45] [#]} (17... Bxd4 $11 {keeps the balance.} 18. Qxd4 f6) 18. Rxc5 $1 $16 {[%emt 0:09:21]} Qxc5 {[%emt 0:01:52]} (18... Nxc5 $2 19. Ba3 $18) 19. Ne6 $1 {[%emt 0:00:17][%csl LRc5,LRf8,LRg7]} Qe7 {[%emt 0:00:26]} 20. Nxf8 {[%emt 0:00:12]} Rxf8 {[%emt 0:00:10]} 21. Qc2 {[%emt 0:01:53]} Qe6 {[%emt 0:04:18]} 22. Rc1 {[%emt 0:00:43]} Rc8 {[%emt 0:01:32]} 23. Bd4 {[%emt 0:01:43]} Rc7 {[%emt 0:05:00]} 24. Qd3 {[%emt 0:01:39]} c5 {[%emt 0:10:19]} 25. f3 {[%emt 0:01:01]} c4 {[%emt 0:02:28]} 26. bxc4 {[%emt 0:00:14]} dxc4 {[%emt 0:00:18]} 27. Qb1 {[%emt 0:00:58]} Nd6 {[%emt 0:04:34]} 28. Qb8+ {[%emt 0:03:12]} Qc8 {[%emt 0:00:18]} 29. Bxa7 {[%emt 0:01:11] White is much more active.} Kf7 {[%emt 0:01:36]} 30. Qxc8 {[%emt 0:04:25]} Rxc8 {[%emt 0:00:13][%mdl 4096] Endgame KRB-KRN} 31. Bd4 {[%emt 0:00:44]} g6 {[%emt 0:00:48]} 32. a4 {[%emt 0:01:55]} Ke6 {[%emt 0:00:50]} 33. Kf2 {[%emt 0:00:57]} Kd5 {[%emt 0:07:00]} 34. Ke2 {[%emt 0:01:04]} f4 {[%emt 0:01:34]} 35. Rd1 {[%emt 0:02:04]} fxe3 {[%emt 0:01:08]} 36. Bxe3+ {[%emt 0:00:10]} Kc6 {[%emt 0:00:05]} 37. g4 {[%emt 0:01:36]} (37. Ra1 $16) 37... Ra8 $14 {[%emt 0:03:33]} 38. Ra1 $1 {[%emt 0:00:32]} Kd5 {[%emt 0:00:26]} ({Black should play} 38... Ne8 $1 $14) 39. a5 $1 $18 {[%emt 0:00:54]} c3 {[%emt 0:03:21] [#]} 40. Kd3 {[%emt 0:01:04]} (40. a6 $1 $18 {is the precise move to win.}) 40... Nc4 $16 {[%emt 0:01:11]} 41. a6 {[%emt 0:00:16] Hoping for a7.} Nxe3 {[%emt 0:00:45] [#] KRN-KR} 42. Ra5+ $1 {[%emt 0:00:14]} Kc6 {[%emt 0:01:02] Strongly threatening ...c2.} 43. Kxe3 {[%emt 0:00:11] aiming for a7. KR-KR} Kb6 {[%emt 0:00:24]} 44. Ra1 {[%emt 0:08:22][%cal Oa6a7] And now a7! would win.} g5 $2 {[%emt 0:12:11]} (44... Rxa6 45. Rxa6+ Kxa6 46. Kd3 $18) (44... Ka7 $16 {might work better.}) 45. Kd3 $18 {[%emt 0:00:38]} Ka7 {[%emt 0:00:17]} 46. Ra5 {[%emt 0:00:25]} ({Less strong is} 46. Kxc3 Rf8 $16) 46... Rc8 {[%emt 0:01:21] White must now prevent ...c2.} 47. Kc2 {[%emt 0:00:04]} ({Don't blunder} 47. Rxg5 $2 c2 48. Rg7+ Kxa6 $19) 47... h6 {[%emt 0:00:18]} 48. Ra3 {[%emt 0:00:36]} Re8 $2 {[%emt 0:01:23]} (48... Rf8 {keeps fighting.} 49. Rxc3 Kxa6) 49. Rxc3 {[%emt 0:00:43]} Re2+ $2 {[%emt 0:00:10]} (49... Kxa6 {was called for.} 50. Rc6+ Kb5 51. Rxh6 Re3) 50. Kd3 {[%emt 0:00:08]} Rxh2 {[%emt 0:00:04]} 51. Ra3 {[%emt 0:00:40]} h5 {[%emt 0:07:42]} 52. Ke4 {[%emt 0:00:05]} h4 {[%emt 0:01:15]} 53. Kf5 {[%emt 0:00:09]} Rg2 {[%emt 0:00:28]} 54. Kxg5 {[%emt 0:00:15] White mates.} h3 {[%emt 0:00:03]} 55. f4 {[%emt 0:00:28][%cal Bf3f4,Bf4f5][%mdl 32]} h2 {[%emt 0:00:03]} 56. Rh3 {[%emt 0:00:05]} Kxa6 {[%emt 0:00:02]} 57. f5 {[%emt 0:00:26]} Kb6 {[%emt 0:00:04]} 58. Kf4 {[%emt 0:00:16]} Kc6 {[%emt 0:00:15]} 59. Kf3 {[%emt 0:00:25]} Ra2 {[%emt 0:00:07]} 60. Kg3 {[%emt 0:00:10]} Kd6 {[%emt 0:00:26]} 61. Rxh2 {[%emt 0:00:14]} Ra3+ {[%emt 0:00:03]} 62. Kf4 {[%emt 0:00:15]} Kd5 {[%emt 0:00:11] Weighted Error Value: White=0.05 (flawless) /Black=0.33} 1-0

[Event "Saint Louis Norm Congress-IM 2022"]
[Site "Saint Louis"]
[Date "2022.05.22"]
[Round "6.2"]
[White "Antova, Gabriela"]
[Black "Rodriguez Rivera, Pedro"]
[Result "*"]
[ECO "A54"]
[WhiteElo "2293"]
[BlackElo "2197"]
[Annotator "TA"]
[PlyCount "33"]
[EventDate "2022.05.20"]
[EventType "tourn"]
[EventCountry "USA"]
[SourceTitle "playchess.com"]
[Source "ChessBase"]
[SourceQuality "1"]
[TimeControl "5400+30"]

{[%evp 15,33,43,47,48,51,23,29,-2,0,-18,0,0,0,0,0,-9,0,-7,0,-4]} 1. d4 {[%emt 0:01:19]} Nf6 {[%emt 0:00:45]} 2. c4 {[%emt 0:02:37]} d6 {[%emt 0:00:03]} 3. Nf3 {[%emt 0:01:02]} Nbd7 {[%emt 0:00:07]} 4. g3 {[%emt 0:01:13]} e5 {[%emt 0:00:26]} 5. Nc3 {[%emt 0:02:53]} c6 {[%emt 0:00:20]} 6. Bg2 {[%emt 0:09:48]} Be7 {[%emt 0:00:08]} 7. O-O {[%emt 0:02:08]} O-O {[%emt 0:00:07]} 8. Qc2 {[%emt 0:10:58]} a6 {[%emt 0:01:12]} 9. Rd1 {[%emt 0:02:17] A54: Old Indian Defence with Nf3, but without e4.} Qc7 {[%emt 0:00:18]} 10. dxe5 {[%emt 0:10:48]} dxe5 {[%emt 0:01:02] [#]} 11. Nh4 $146 {[%emt 0:02:52] White has an edge.} ({Predecessor:} 11. Ne4 Re8 12. Nxf6+ Nxf6 13. h3 h6 14. Be3 Be6 15. b3 Nd7 16. c5 Nf6 17. a3 {0-1 (49) Perdomo,C (2301)-Valdes Romero,L (2402) Chess.com INT 2020}) 11... g6 {[%emt 0:01:40] The position is equal.} 12. b3 {[%emt 0:00:35]} Re8 {[%emt 0:01:09]} 13. Bb2 {[%emt 0:02:53]} a5 {[%emt 0:02:07]} 14. Nf3 {[%emt 0:01:28]} Bf8 {[%emt 0:00:29]} 15. Na4 {[%emt 0:04:29]} Nc5 {[%emt 0:08:18]} 16. Nxc5 {[%emt 0:01:46]} Bxc5 {[%emt 0:00:26]} 17. e3 {[%emt 0:00:59] Weighted Error Value: White=0.10 (very precise) /Black=0.03 (flawless)} *

[Event "Saint Louis Norm Congress-IM 2022"]
[Site "Saint Louis"]
[Date "2022.05.22"]
[Round "6.3"]
[White "Tokhirjonova, Gulrukhbegim"]
[Black "Proleiko, Julian"]
[Result "1/2-1/2"]
[ECO "B13"]
[WhiteElo "2337"]
[BlackElo "2204"]
[Annotator "TA"]
[PlyCount "161"]
[EventDate "2022.05.20"]
[EventType "tourn"]
[EventCountry "USA"]
[SourceTitle "playchess.com"]
[Source "ChessBase"]
[SourceQuality "1"]
[TimeControl "5400+30"]

{[%evp 19,161,22,14,-1,4,0,0,-60,-58,-71,-66,-72,-64,-88,-64,-82,-79,-81,-26,-35,-21,-23,-16,-43,-35,-50,-35,-82,-38,-40,-40,-91,-87,-91,-87,-85,-52,-243,-247,-247,-247,-242,-234,-234,-227,-245,-245,-245,-245,-245,-245,-259,-235,-288,-288,-288,-288,-338,-338,-331,-316,-316,-283,-316,-316,-312,-312,-316,-254,-316,-316,-387,-361,-411,-466,-506,-505,-488,-463,-505,-378,-12485,-12478,-12500,-12579,-12579,-8385,-8646,-9867,-12610,-12833,-10248,-9402,-29940,-235,-29961,-29964,-29964,-29963,-29959,-29959,-29955,-29956,-7014,-4134,-5073,-2228,-235,-235,-29973,-29974,-29974,-29975,-29975,-29976,-29976,-29977,-29977,-29978,-29979,-29980,-29979,-29980,-29980,-29981,-29981,-29979,-29984,-29985,-29985,-29980,-29985,0,-29985,-29982,-29984,0,0,0,0,0,0,0,0]} 1. e4 {[%emt 0:02:24]} c6 {[%emt 0:00:04]} 2. d4 {[%emt 0:00:21]} d5 {[%emt 0:00:05]} 3. exd5 {[%emt 0:00:30]} cxd5 {[%emt 0:00:06]} 4. Bd3 {[%emt 0:00:15]} Nf6 {[%emt 0:00:06]} 5. h3 {[%emt 0:00:34]} Nc6 {[%emt 0:00:22]} 6. c3 {[%emt 0:00:38]} e5 {[%emt 0:00:23]} 7. dxe5 {[%emt 0:00:39]} Nxe5 {[%emt 0:00:03]} 8. Nf3 {[%emt 0:01:16]} Nxd3+ {[%emt 0:00:07]} 9. Qxd3 {[%emt 0:00:07]} Be7 {[%emt 0:00:19][%cal Bf8e7,Be7d8,Bd8b6][%mdl 32] 9...Bd6 is more advanced technology.} 10. O-O {[%emt 0:01:11]} O-O {[%emt 0:00:07]} 11. Bg5 {[%emt 0:02:31] B13: Caro-Kann: Exchange Variation and Panov-Botvinnik Attack.} h6 {[%emt 0:01:48]} 12. Bh4 {[%emt 0:00:44][%cal Bg5h4,Bh4g3,Bg3e5][%mdl 32]} Qb6 {[%emt 0:04:10]} 13. Nbd2 {[%emt 0:06:20]} ({Better is} 13. Qc2 $11) 13... Qxb2 $15 {[%emt 0:01:49]} 14. Rfe1 {[%emt 0:01:49] aiming for a4.} Bd8 {[%emt 0:00:56] [#]} 15. Bg3 $146 {[%emt 0:06:05]} ({Predecessor:} 15. c4 dxc4 16. Nxc4 Qb5 17. Nd4 Qa6 18. Qb3 Bd7 19. Ne5 Ba4 20. Qf3 Rc8 21. Nf5 {0-1 (40) Bistric,F (2425)-Jovanic,O (2260) Pula 1997}) 15... Qa3 {[%emt 0:17:41] Inhibits Bd6.} 16. Rab1 {[%emt 0:03:41]} Bb6 {[%emt 0:08:21]} (16... Qxa2 $2 17. Ra1 Qb2 18. Reb1 $18) 17. Be5 {[%emt 0:02:20]} Nd7 {[%emt 0:01:14]} (17... Qxa2 $2 18. Ra1 Qb2 19. Reb1 Qxa1 20. Rxa1 $18) 18. Bd4 {[%emt 0:09:50]} Nc5 {[%emt 0:01:13]} (18... Bxd4 $17 19. Nxd4 Nf6) 19. Qe3 $11 {[%emt 0:02:22]} Ne6 {[%emt 0:04:01]} 20. Bxb6 {[%emt 0:07:56]} axb6 {[%emt 0:00:15]} 21. Nb3 {[%emt 0:04:17]} Ra6 {[%emt 0:02:17][%cal Ba8a6,Ba6e6,Be6c6,Bc6c2,Bc2b2][%mdl 32]} ({Don't play} 21... Qxa2 22. Ra1 Qxb3 23. Rxa8 $16) 22. Re2 {[%emt 0:01:24]} Bd7 {[%emt 0:02:44]} 23. Rd2 {[%emt 0:00:20]} (23. Ne5 $15 Bb5 24. Reb2) 23... Nc5 {[%emt 0:05:28]} 24. Nxc5 {[%emt 0:11:13]} bxc5 {[%emt 0:00:05]} 25. Rxb7 {[%emt 0:00:47]} ({White should try} 25. Rxd5 $15 Qxa2 26. Rbd1) 25... Re6 $1 $17 {[%emt 0:01:01]} 26. Qd3 {[%emt 0:02:53]} Bc6 $36 {[%emt 0:00:35][%mdl 2048] Black is really pushing.} 27. Rb6 {[%emt 0:01:32][%cal Of3e5]} Qc1+ {[%emt 0:01:35]} 28. Kh2 $2 {[%emt 0:03:40]} (28. Rd1 $15 Qf4 29. Re1) 28... d4 $1 $19 {[%emt 0:01:32] White must now prevent ...Be4.} 29. Rxc6 {[%emt 0:10:33]} Rxc6 {[%emt 0:00:09]} 30. cxd4 {[%emt 0:00:04]} cxd4 {[%emt 0:04:09]} 31. Qxd4 {[%emt 0:00:09]} Rc2 {[%emt 0:00:30]} 32. Rd3 {[%emt 0:04:59]} Qb2 {[%emt 0:00:53]} 33. Qxb2 Rxb2 {[%emt 0:00:39][%mdl 4096] Endgame KRR-KRN} 34. Kg3 {[%emt 0:04:25]} Rxa2 {[%emt 0:00:05]} 35. Nd2 {[%emt 0:00:09]} Rb8 {[%emt 0:00:06]} 36. Kf3 {[%emt 0:00:10]} Rbb2 {[%emt 0:00:33]} 37. Ke3 {[%emt 0:00:07]} g6 {[%emt 0:00:19]} 38. h4 {[%emt 0:00:15]} Kg7 {[%emt 0:00:16]} 39. g3 {[%emt 0:00:10]} Ra1 {[%emt 0:00:14]} 40. Ke2 {[%emt 0:00:55]} Rb6 {[%emt 0:00:47]} 41. Kf3 {[%emt 0:00:58]} Rf6+ {[%emt 0:00:13]} 42. Kg2 {[%emt 0:00:08]} Rd1 {[%emt 0:00:06]} 43. Rd4 {[%emt 0:00:29]} Kf8 {[%emt 0:00:53]} 44. Rd3 {[%emt 0:00:22]} Re6 {[%emt 0:00:27]} 45. Kf3 {[%emt 0:00:36] Inhibits Re2.} Ke7 {[%emt 0:00:16]} 46. Rd4 {[%emt 0:00:23]} f5 {[%emt 0:00:35]} 47. Nb3 {[%emt 0:02:19]} Rxd4 {[%emt 0:00:12]} 48. Nxd4 {[%emt 0:00:01] KR-KN} Re4 {[%emt 0:00:15]} 49. Ne2 {[%emt 0:00:23]} g5 {[%emt 0:00:43]} 50. hxg5 {[%emt 0:00:05]} (50. Nc3 Rd4 51. Ne2 Rd3+ 52. Kg2) 50... hxg5 {[%emt 0:00:03][%cal Bh6g5,Bg5g4][%mdl 32]} 51. Nc3 {[%emt 0:00:33]} g4+ {[%emt 0:00:28]} 52. Kg2 {[%emt 0:00:01]} Rc4 {[%emt 0:00:08]} 53. Nd5+ {[%emt 0:01:36]} Ke6 {[%emt 0:00:15]} 54. Nf4+ {[%emt 0:00:07]} Ke5 {[%emt 0:00:08]} 55. Ng6+ {[%emt 0:00:16]} Ke4 {[%emt 0:00:16]} 56. Nf4 {[%emt 0:00:26]} Rc2 $2 {[%emt 0:00:35]} (56... Rc1 57. Ne6 Rc2 58. Nf4 Kd4 59. Ne6+ Ke4 60. Ng7 Rc6 61. Nh5 Rc3 62. Nf4 Ra3 63. Ne6 Ke5 64. Nf4 Ra2 65. Kf1 Rc2 66. Ng2 Rb2 67. Ne3 Rb1+ 68. Ke2 Ke4 69. Ng2 Rb2+ 70. Kf1 Ke5 71. Nf4 Rd2 72. Ke1 Ra2 73. Ng6+ Kd4 74. Kf1 Kd5 75. Nf4+ Kd4 76. Ng2 Kd5 77. Nh4 Ke6 78. Ng2 Ke5 79. Nf4 Kd4 80. Ng2 Ke4 81. Nh4 Rd2 82. Ke1 Rc2 83. Kf1 Rd2 84. Ke1 Rb2 85. Kf1 Ke5 86. Ng6+ Kd5 87. Nf4+ Ke4 88. Ng2 Rd2 89. Nh4 Rd1+ 90. Ke2 Ra1 91. Ng6 Ra2+ 92. Kf1 Kd5 93. Nh4 Ke6 94. Ng2 Ke5 95. Nf4) 57. Ne6 $2 {[%emt 0:00:54]} (57. Kf1 $19) 57... Kd3 $1 {[%emt 0:01:20]} 58. Ng7 {[%emt 0:02:31]} Rc5 {[%emt 0:00:30]} 59. Ne6 {[%emt 0:00:08]} Re5 {[%emt 0:01:00]} 60. Nf4+ {[%emt 0:00:06]} Kd2 $1 {[%emt 0:00:47]} 61. Kf1 {[%emt 0:00:51]} Re1+ {[%emt 0:00:26]} 62. Kg2 {[%emt 0:00:12]} Re4 {[%emt 0:00:11]} (62... Rd1 $142 63. Ng6 Ke2) 63. Kf1 {[%emt 0:00:38]} Ra4 {[%emt 0:01:54] ...Ra1+ is the strong threat.} 64. Ne6 $2 {[%emt 0:02:00]} (64. Ng6 $19) 64... Ra1+ $1 {[%emt 0:01:03]} 65. Kg2 {[%emt 0:00:01]} Ke1 $1 {[%emt 0:00:46]} 66. Nf4 {[%emt 0:00:41]} Ra3 {[%emt 0:00:43]} 67. Kg1 {[%emt 0:01:18]} Rf3 {[%emt 0:00:20]} 68. Ng2+ {[%emt 0:00:08] [#]} Ke2 $1 {[%emt 0:00:05]} 69. Nf4+ {[%emt 0:00:24] [#]} Rxf4 $1 {[%emt 0:00:38][%mdl 512]} 70. gxf4 {[%emt 0:00:02] KPP-KPP} Kf3 {[%emt 0:00:07]} 71. Kf1 {[%emt 0:00:33]} Kxf4 {[%emt 0:00:05] KPP-KP} 72. Kg2 {[%emt 0:05:42]} Kg5 {[%emt 0:00:05]} 73. Kg3 {[%emt 0:00:54]} f4+ {[%emt 0:00:05]} 74. Kg2 {[%emt 0:00:02]} Kh4 {[%emt 0:00:05]} 75. Kf1 {[%emt 0:00:45]} Kg5 $2 {[%emt 0:01:34]} (75... f3 76. Kg1 g3 77. Kf1 g2+ 78. Kg1 Kg4 79. Kh2 Kf5 80. Kg1 Ke4 81. Kh2 Kd3 82. Kg3 Ke2 83. Kg4 g1=Q+ 84. Kf5 Qxf2 85. Kg5 Qd4 86. Kh5 f2 87. Kh6 f1=Q 88. Kh5 Qf5+ 89. Kh6 Qh8#) 76. Ke1 $2 {[%emt 0:00:27][%mdl 8192]} (76. Kg2 $11 f3+ 77. Kg1 Kf5 78. Kh2 Kf4 79. Kg1 g3 80. fxg3+ Kxg3 81. Kh1 Kf4 82. Kg1 Ke3 83. Kh2 f2 84. Kg2 Ke2 85. Kh3 f1=Q+ 86. Kg4 Qf6 87. Kh5 Ke3 88. Kg4 Qg6+ 89. Kh3 Kf3 90. Kh4 Qh6#) 76... Kf5 {[%emt 0:00:05]} 77. Ke2 {[%emt 0:00:06]} Ke4 $2 {[%emt 0:00:04]} (77... f3+ {mates} 78. Ke3 Ke5 79. Kd3 Kf4 80. Kd2 Ke4 81. Kd1 Kd3 82. Ke1 Kc2 83. Kf1 Kd2 84. Kg1 g3 85. fxg3 Ke2 86. Kh2 f2 87. Kh3 f1=Q+ 88. Kh4 Qf6+ 89. Kg4 Ke3 90. Kh3 Kf3 91. Kh2 Qb2+ 92. Kh3 Qh8#) 78. f3+ $1 $11 {[%emt 0:00:28] The position is equal.} Kf5 {[%emt 0:00:30]} 79. fxg4+ Kxg4 {[%emt 0:00:02] ( -> ...Kg3)} 80. Kf2 {[%emt 0:00:13]} f3 {[%emt 0:00:15]} 81. Kf1 {[%emt 0:00:07] Weighted Error Value: White=0.72/Black=0.27 (precise)} 1/2-1/2